{"text_format":"1","workbook":"xlsx","n_sheets":2,"sheets":["3_","список (для задания 2)"],"not_rendered":{"charts":0,"images":0,"macros":1,"external_links":0,"defined_names":0,"comments":0,"pivot_tables":0},"unopened":[],"bounds":{"document_bytes":16777216,"sheet_cells":100000,"rows_first":2000,"rows_last":500,"rows_between":2000,"halvings":0,"cell_chars":16384,"cell_head_chars":4096},"cells_cut":0,"cells_raw":0,"read":"whole","date_system":"1900"}

{"sheet":"3_","index":0,"n_rows":20,"n_cols":4,"rows_kept":20,"cut":false,"hidden":false,"merged":[]}
[523000,{"$f":"ISNUMBER(A1)","v":true},null,{"$f":"COUNTIF(B1:B20,2=1)","v":8}]
[687400,{"$f":"ISNUMBER(A2)","v":true}]
[664700,true,null,"Иногда мы выполняем неправильные расчеты из-за того,"]
["1 199 000,00",false,null,"что среди цифр попадаются текстовые переменные"]
["1 864 000.00",false,null,"которые внешне от цифр не отличаются."]
[360000,true,null,"Вообще говоря это происходит чаще всего из-за того, "]
[747400,true,null,"что мы поленились заранее определить формат ячейки."]
["1 312 000.00",false,null,"Задание 3:"]
[839000,true,null,"1. Используя функции рабочего листа и столбец В, проверьте,"]
["624 000,00",false,null,"все ли числа столбца А являются действительно числами."]
[1136000,true,null,"2. Найденные вами НЕ числа в столбце А выделите красным цветом"]
[373600,true,null,"3. Введите количество найденных Вами НЕ чисел в ячейку D2."]
[308950,true]
[324000,true]
[331520,true]
["518 000,00",{"$f":"ISNUMBER(A16)","v":false}]
["572 500,00",false]
["528 620,00",false]
["602 000,00",false]
[326895,true]

{"sheet":"список (для задания 2)","index":1,"n_rows":8,"n_cols":1,"rows_kept":8,"cut":false,"hidden":true,"merged":[]}
["Список"]
["Вашингтон"]
["Калифорния"]
["Мичиган"]
["Нью-йорк"]
["Техас"]
["Филадельфия"]
["Юта"]